bitfinex/quotes_BTCUSD_20251114
["timestamp","ask_amount","ask_price","bid_price","bid_amount"]
[1763130549879,0.20934516,95536.0,95530.0,0.0004]
[1763130550078,0.31424389,95537.0,95536.0,0.00232484]
[1763130551233,0.31424389,95537.0,95530.0,0.0004]
[1763130551234,0.20935612,95531.0,95530.0,0.0004]
[1763130551436,0.53237804,95521.0,95520.0,0.0004]
[1763130552064,0.53237804,95521.0,95520.0,0.00083788]
[1763130553510,0.326,95521.0,95520.0,0.00083788]
[1763130553654,0.003,95521.0,95520.0,0.00083788]
[1763130553875,0.006,95521.0,95501.0,0.04982]
[1763130554074,0.006,95521.0,95500.0,0.0004]
[1763130554276,0.02,95510.0,95500.0,0.0004]
[1763130554717,0.006,95521.0,95509.0,0.00030111]
[1763130554919,0.02,95520.0,95510.0,0.83272593]
[1763130555266,0.01,95510.0,95507.0,0.20940662]
[1763130555435,0.01,95510.0,95509.0,0.20940434]
[1763130555630,0.01,95520.0,95519.0,0.20938044]
[1763130556185,0.013,95520.0,95518.0,0.20938286]
[1763130556738,0.10479654,95536.0,95515.0,0.20939016]
[1763130556739,0.01,95530.0,95519.0,0.0915]
[1763130556943,0.01,95530.0,95529.0,0.2093605]
[1763130557288,0.01,95530.0,95529.0,0.2719805]
[1763130557486,0.01,95530.0,95527.0,0.04982]
[1763130557724,0.01,95530.0,95528.0,0.20936269]
[1763130557943,0.01149009,95530.0,95521.0,0.04982]
[1763130558108,0.021,95520.0,95514.0,0.20939137]
[1763130558337,0.021,95520.0,95518.0,0.20938304]
[1763130558459,0.01149009,95530.0,95509.0,0.20940434]
[1763130558460,0.01,95510.0,95509.0,0.20940434]
[1763130559666,0.012,95510.0,95509.0,0.20940434]
[1763130560076,0.011,95510.0,95509.0,0.20940434]
[1763130560279,0.012,95510.0,95509.0,0.20940434]
[1763130560498,0.011,95510.0,95509.0,0.20940434]
[1763130560734,0.011,95510.0,95509.0,0.30090434]
[1763130560949,0.012,95510.0,95509.0,0.22290434]
[1763130561154,0.011,95510.0,95509.0,0.22290434]
[1763130561363,0.012,95510.0,95509.0,0.22290434]
[1763130561513,0.012,95510.0,95507.0,0.20940707]
[1763130561714,0.012,95510.0,95501.0,0.04982]
[1763130561715,0.002,95510.0,95501.0,0.04982]
[1763130562000,0.001,95510.0,95501.0,0.04982]
[1763130562198,0.001,95510.0,95509.0,0.20940434]
[1763130562409,0.002,95510.0,95509.0,0.20940434]
[1763130562613,0.001,95510.0,95509.0,0.20940434]
[1763130562766,0.20937421,95523.0,95509.0,0.20940434]
[1763130563089,0.002,95510.0,95509.0,0.20940434]
[1763130563300,0.001,95510.0,95501.0,0.04982]
[1763130563722,0.002,95510.0,95501.0,0.04982]
[1763130563849,0.002,95510.0,95507.0,0.20940756]
[1763130564202,0.001,95510.0,95505.0,0.20941232]
[1763130564446,0.001,95510.0,95500.0,0.0004]
[1763130564447,0.02022832,95509.0,95500.0,0.0004]
[1763130564647,0.022,95510.0,95501.0,0.20942067]
[1763130564830,0.022,95510.0,95500.0,0.0004]
[1763130565014,0.10479654,95519.0,95503.0,0.20941597]
[1763130565232,0.20939338,95514.0,95501.0,0.20942167]
[1763130565396,0.002,95510.0,95500.0,0.0004]
[1763130565598,0.001,95510.0,95509.0,0.00030111]
[1763130565921,0.20939896,95512.0,95509.0,0.00030111]
[1763130566117,0.022,95510.0,95500.0,0.0004]
[1763130566333,0.20938671,95518.0,95508.0,0.20940587]
[1763130566530,0.20939076,95516.0,95505.0,0.20941244]
[1763130566734,0.002,95510.0,95500.0,0.20982189]
[1763130566909,0.022,95510.0,95500.0,0.0004]
[1763130567106,0.022,95510.0,95500.0,0.20982382]
[1763130567304,0.022,95510.0,95500.0,0.0004]
[1763130567305,0.0440787,95509.0,95500.0,0.0004]
[1763130567507,0.20941405,95505.0,95500.0,0.0004]
[1763130567864,0.024,95510.0,95500.0,0.20982297]
[1763130568069,0.01,95510.0,95500.0,0.79212593]
[1763130568357,0.002,95509.0,95500.0,0.79212593]
[1763130568710,0.002,95509.0,95500.0,0.79258069]
[1763130568905,0.20939946,95512.0,95500.0,0.79258069]
[1763130569131,0.20940685,95508.0,95500.0,0.79258069]
[1763130569620,0.003,95510.0,95500.0,0.79258069]
[1763130569830,0.023,95510.0,95500.0,0.79258069]
[1763130570197,0.2094145,95505.0,95500.0,0.79258069]
[1763130570401,0.02,95510.0,95501.0,0.20942189]
[1763130570578,0.02,95510.0,95500.0,0.79258069]
[1763130570873,0.20940873,95507.0,95500.0,0.00045476]
[1763130571034,0.20942151,95502.0,95500.0,0.00045476]
[1763130571241,0.10479654,95502.0,95500.0,0.00045476]
[1763130571440,0.11527619,95502.0,95500.0,0.00045476]
[1763130571640,0.20942189,95501.0,95500.0,0.00045476]
[1763130571822,0.10479654,95502.0,95500.0,0.00045476]
[1763130572071,0.002,95507.0,95500.0,0.00045476]
[1763130572288,0.002,95510.0,95500.0,0.00045476]
[1763130572289,0.002,95510.0,95504.0,0.20941512]
[1763130572489,0.002,95510.0,95506.0,0.00038324]
[1763130572695,0.002,95510.0,95503.0,0.20941721]
[1763130572890,0.002,95510.0,95502.0,0.20941847]
[1763130573099,0.002,95510.0,95500.0,0.00045476]
[1763130573301,0.20941445,95505.0,95500.0,0.89381112]
[1763130573523,0.20941092,95506.0,95500.0,0.89381112]
[1763130573724,0.002,95501.0,95500.0,0.89381112]
[1763130574128,0.002,95507.0,95505.0,0.2094131]
[1763130574330,0.002,95507.0,95502.0,0.20941825]
[1763130574552,0.002,95505.0,95502.0,0.20941825]
[1763130574723,0.002,95505.0,95500.0,0.00045476]
[1763130574724,0.20941625,95504.0,95500.0,0.00045476]
[1763130574922,0.20940849,95508.0,95500.0,0.00045476]
[1763130575162,0.20941921,95503.0,95497.0,0.83781112]
[1763130575366,0.00045355,95503.0,95497.0,0.83781112]
[1763130575738,0.00045355,95503.0,95500.0,0.2094232]
[1763130575944,0.00045355,95503.0,95497.0,0.83781112]
[1763130576143,0.00045355,95503.0,95498.0,0.20942846]
[1763130576343,0.00045355,95503.0,95497.0,0.83781112]
[1763130576344,0.00045355,95503.0,95490.0,1.10320026]
[1763130576564,0.20942107,95502.0,95490.0,0.89375636]
[1763130576769,0.02,95500.0,95490.0,0.89375636]
[1763130576973,0.20942496,95500.0,95491.0,0.20944382]
[1763130577131,0.00045355,95503.0,95490.0,0.89375636]
[1763130577339,0.00045355,95503.0,95502.0,0.27447969]
[1763130577556,0.00145355,95503.0,95502.0,0.06506]
[1763130577848,0.012,95500.0,95498.0,0.20942765]
[1763130578052,0.012,95500.0,95497.0,0.20943003]
[1763130578259,0.004,95500.0,95493.0,0.20943943]
[1763130578503,0.20987195,95503.0,95492.0,0.20944003]
[1763130578788,0.20942234,95501.0,95494.0,0.20943655]
[1763130579021,0.20987228,95503.0,95491.0,0.20944382]
[1763130579171,0.20987228,95503.0,95490.0,0.0004]
[1763130579172,0.00045355,95503.0,95490.0,0.0004]
[1763130579369,0.00045355,95503.0,95493.0,0.209438]
[1763130579370,0.002,95500.0,95493.0,0.209438]
[1763130579595,0.002,95500.0,95498.0,0.20942647]
[1763130579777,0.022,95500.0,95497.0,0.20943009]
[1763130579985,0.002,95500.0,95494.0,0.20943674]
[1763130580310,0.002,95500.0,95495.0,0.20943419]
[1763130580535,0.002,95500.0,95490.0,0.0004]
[1763130580536,0.022,95500.0,95490.0,0.0004]
[1763130580671,0.022,95500.0,95490.0,1.10320067]
[1763130580884,0.002,95500.0,95498.0,0.20942724]
[1763130581493,0.001,95501.0,95496.0,0.20942831]
[1763130581696,0.00045355,95503.0,95498.0,0.20942791]
[1763130581945,0.00045355,95503.0,95502.0,0.20941969]
[1763130582134,0.00045355,95503.0,95491.0,0.30865281]
[1763130582367,0.00045355,95503.0,95491.0,0.09921]
[1763130582531,0.002,95500.0,95491.0,0.23065162]
[1763130582685,0.002,95500.0,95498.0,0.20942639]
[1763130582885,0.003,95500.0,95498.0,0.20942723]
[1763130583239,0.002,95500.0,95499.0,0.0005749]
[1763130583616,0.001,95500.0,95499.0,0.0005749]
[1763130584044,0.02475,95502.0,95500.0,0.20942408]
[1763130584445,0.00045355,95503.0,95502.0,0.20941969]
[1763130584783,0.00045355,95503.0,95502.0,0.53241969]
[1763130585356,0.00045355,95503.0,95502.0,0.20941969]
[1763130587377,0.00245355,95503.0,95502.0,0.20941969]
[1763130587564,0.00145355,95503.0,95502.0,0.20941969]
[1763130587922,0.00245355,95503.0,95502.0,0.20941969]
[1763130588277,0.00145355,95503.0,95502.0,0.20941969]
[1763130588523,0.00245355,95503.0,95502.0,0.25283843]
[1763130588725,0.00045355,95503.0,95502.0,0.25283843]
[1763130589098,0.00145355,95503.0,95502.0,0.25283843]
[1763130589279,0.00245355,95503.0,95502.0,0.25283843]
[1763130589461,0.00245355,95503.0,95502.0,0.17483843]
[1763130589656,0.00145355,95503.0,95502.0,0.17483843]
[1763130589858,0.00145355,95503.0,95502.0,0.19627315]
[1763130590064,0.00145355,95503.0,95502.0,0.17533119]
[1763130590459,0.00045355,95503.0,95502.0,0.17533119]
[1763130591491,0.00045355,95503.0,95502.0,0.13191245]
[1763130593766,0.00045355,95503.0,95502.0,0.15285441]
[1763130593991,0.00045355,95503.0,95502.0,0.17533119]
[1763130594189,0.00045355,95503.0,95502.0,0.19627315]
[1763130594438,0.00045355,95503.0,95502.0,0.17533119]
[1763130596760,0.00045355,95503.0,95502.0,0.12333119]
[1763130598142,0.00045355,95503.0,95502.0,0.07991245]
[1763130598355,0.00045355,95503.0,95502.0,0.00049276]
[1763130598615,0.00045355,95503.0,95502.0,0.20991245]
[1763130599163,0.00045355,95503.0,95502.0,0.00049276]
[1763130599367,0.00045355,95503.0,95502.0,0.20991245]
[1763130599772,0.00045355,95503.0,95502.0,0.00049276]
[1763130600139,0.00045355,95503.0,95502.0,0.20991245]
[1763130600355,0.00045355,95503.0,95502.0,0.00049276]
[1763130600765,0.00194355,95503.0,95502.0,0.00049276]
[1763130601067,0.00045355,95503.0,95502.0,0.20991245]
[1763130601280,0.01,95540.0,95512.0,0.04341874]
[1763130601479,0.01,95550.0,95539.0,0.11277]
[1763130601639,0.03145333,95582.0,95539.0,0.11277]
[1763130601640,0.25873925,95585.0,95555.0,0.06552]
[1763130601964,0.01641734,95573.0,95564.0,0.04725]
[1763130602112,0.02,95570.0,95560.0,0.652714]
[1763130602309,0.01046134,95590.0,95560.0,0.746064]
[1763130602671,0.01,95560.0,95553.0,0.09335]
[1763130602885,0.01046243,95580.0,95532.0,0.09335]
[1763130602886,0.04148,95561.0,95532.0,0.09335]
[1763130603082,0.01,95540.0,95539.0,0.25658693]
[1763130603308,0.04148,95561.0,95540.0,0.09335]
[1763130603496,0.01,95550.0,95549.0,0.20931668]
[1763130603889,0.01,95550.0,95540.0,0.09335]
[1763130603890,0.09098,95561.0,95530.0,0.01046791]
[1763130604090,0.04049071,95560.0,95530.0,0.01046791]
[1763130604295,0.04248,95561.0,95552.0,0.20930822]
[1763130604499,0.001,95560.0,95552.0,0.00013638]
[1763130604711,0.00049,95553.0,95552.0,0.00013638]
[1763130604912,0.20932015,95548.0,95533.0,0.00138638]
[1763130605069,0.01,95530.0,95520.0,0.10381901]
[1763130605276,0.21935957,95530.0,95520.0,0.66318301]
[1763130605477,0.01,95530.0,95520.0,0.66318301]
[1763130605706,0.20935621,95531.0,95520.0,0.652714]
[1763130606023,0.0495,95553.0,95534.0,0.2093475]
[1763130606261,0.0495,95553.0,95529.0,0.2093605]
[1763130606262,0.01,95530.0,95529.0,0.2093605]
[1763130606438,0.011,95530.0,95529.0,0.2093605]
[1763130606594,0.01,95520.0,95513.0,0.20939473]
[1763130606807,0.001,95530.0,95500.0,0.323]
[1763130606808,0.001,95530.0,95529.0,0.2093605]
[1763130607391,0.31407301,95568.0,95522.0,0.04341874]
[1763130607392,0.0495,95558.0,95522.0,0.04341874]
[1763130607595,0.01,95550.0,95538.0,0.718234]
[1763130607798,0.00213605,95548.0,95547.0,0.04725]
[1763130608001,0.00213605,95548.0,95547.0,0.11277]
[1763130608209,0.00213605,95548.0,95539.0,0.20933859]
[1763130608210,0.02,95540.0,95539.0,0.20933859]
[1763130608409,0.00013605,95548.0,95534.0,0.20934787]
[1763130608624,0.02,95540.0,95539.0,0.20933859]
[1763130608821,0.00113605,95548.0,95547.0,0.27110106]
[1763130609029,0.00013605,95548.0,95547.0,0.5757398]
[1763130609225,1e-08,95548.0,95547.0,0.5757398]
[1763130609476,0.02641255,95590.0,95588.0,0.20923128]
[1763130609679,0.02641255,95590.0,95588.0,0.0334]
[1763130609680,0.00013618,95589.0,95588.0,0.0334]
[1763130609879,0.00013618,95589.0,95581.0,0.20924453]
[1763130610196,0.02,95570.0,95560.0,0.0334]
[1763130610336,0.10479654,95582.0,95561.0,0.04595]
[1763130610538,0.00013618,95589.0,95561.0,0.04595]
[1763130610539,0.00013618,95589.0,95588.0,0.20923128]
[1763130610736,0.00113618,95589.0,95588.0,0.27101128]
[1763130610971,0.00013618,95589.0,95588.0,0.57565002]
[1763130611191,0.0002,95620.0,95619.0,0.20916345]
[1763130611382,0.0002,95620.0,95619.0,0.31689345]
[1763130611383,0.00065375,95620.0,95619.0,0.31689345]
[1763130611590,0.00065375,95620.0,95619.0,0.62153219]
[1763130612009,0.0102,95650.0,95649.0,0.20909784]
[1763130612225,0.0102,95650.0,95649.0,0.23846658]
[1763130612226,0.00033612,95650.0,95649.0,0.23846658]
[1763130612400,0.00033612,95650.0,95649.0,0.56146658]
[1763130613047,0.00033612,95650.0,95649.0,0.78576358]
[1763130613698,0.00033612,95650.0,95649.0,1.13278658]
[1763130613920,0.0002,95660.0,95649.0,0.65902874]
[1763130614094,0.01,95670.0,95669.0,0.57547287]
[1763130614334,0.01,95670.0,95660.0,0.00999999]
[1763130614335,0.0002,95710.0,95709.0,0.20896676]
[1763130614539,0.00033609,95710.0,95709.0,0.6831155]
[1763130614743,0.00033609,95710.0,95709.0,0.6213355]
[1763130615164,0.00033609,95710.0,95709.0,0.10116576]
[1763130615375,0.20896676,95709.0,95690.0,0.64997731]
[1763130615576,0.04983609,95710.0,95688.0,0.20901262]
[1763130615577,0.01,95690.0,95688.0,0.20901262]
[1763130616005,0.00033609,95710.0,95708.0,0.20896752]
[1763130616211,0.00033609,95710.0,95709.0,0.47414874]
[1763130616416,0.00033609,95710.0,95709.0,0.41236874]
[1763130617030,0.00033609,95710.0,95699.0,0.20898859]
[1763130617031,0.01033609,95710.0,95698.0,0.04595]
[1763130617233,0.02525,95709.0,95660.0,0.01045369]
[1763130617434,0.00033609,95710.0,95700.0,0.64997731]
[1763130617650,0.002,95709.0,95681.0,0.09942]
[1763130617865,0.01,95690.0,95680.0,0.64997731]
[1763130617995,0.002,95709.0,95670.0,0.7598499]
[1763130617996,0.0515,95709.0,95670.0,0.7598499]
[1763130618200,0.01,95680.0,95672.0,0.01044713]
[1763130618401,0.03194,95679.0,95657.0,0.20907957]
[1763130618625,0.01045041,95690.0,95653.0,0.09942]
[1763130618869,0.01,95680.0,95671.0,0.20904976]
[1763130619024,0.10479654,95700.0,95689.0,0.04595]
[1763130619025,0.01,95690.0,95689.0,0.04595]
[1763130619201,0.01,95690.0,95672.0,0.09942]
[1763130619202,0.11479654,95700.0,95681.0,0.04595]
[1763130619410,0.20898859,95699.0,95680.0,0.62792731]
[1763130619631,0.20899515,95696.0,95679.0,0.04595]
[1763130619825,0.01,95680.0,95679.0,0.04595]
[1763130620033,0.01,95680.0,95675.0,0.20903986]
[1763130620249,0.01,95680.0,95670.0,0.6604299]
[1763130620250,0.01,95670.0,95658.0,0.20907751]
[1763130620447,0.01,95670.0,95651.0,0.20909347]
[1763130620683,0.2090657,95664.0,95650.0,0.96894691]
[1763130620904,0.01,95670.0,95660.0,0.20907195]
[1763130621133,0.01,95670.0,95663.0,0.20906609]
[1763130621337,0.01145041,95690.0,95688.0,0.20901262]
[1763130621338,0.001,95690.0,95688.0,0.20901262]
[1763130621515,0.00113604,95690.0,95689.0,0.14283874]
[1763130621726,0.00013604,95690.0,95689.0,0.46583874]
[1763130621936,0.00013604,95690.0,95689.0,0.36641874]
[1763130622455,0.00013604,95690.0,95688.0,0.20901262]
[1763130622456,0.01013604,95690.0,95679.0,0.04595]
[1763130622603,0.001,95670.0,95655.0,0.09942]
[1763130622826,0.01,95660.0,95659.0,0.20907598]
[1763130623005,0.01,95660.0,95650.0,0.6606249]
[1763130623216,0.01,95670.0,95667.0,0.20905839]
[1763130623458,0.01,95690.0,95689.0,0.04595]
[1763130623649,0.09778,95698.0,95665.0,0.09942]
[1763130623887,0.01,95680.0,95676.0,0.20903702]
[1763130624044,0.01,95680.0,95670.0,0.65017012]
[1763130624431,0.01,95680.0,95653.0,0.09942]
[1763130624432,0.011,95670.0,95650.0,0.01045478]
[1763130624563,0.001,95670.0,95669.0,0.20905413]
[1763130624979,0.001,95670.0,95669.0,0.25247287]
[1763130625405,0.001,95670.0,95669.0,0.57547287]
[1763130625613,0.001,95670.0,95662.0,0.20906943]
[1763130625614,0.00013604,95698.0,95671.0,0.04341874]
[1763130625987,0.00013604,95698.0,95672.0,0.09942]
[1763130626191,0.00013604,95698.0,95696.0,0.20899335]
[1763130626592,0.00024574,95671.0,95670.0,0.66062271]
[1763130626794,0.00013604,95698.0,95697.0,0.57794296]
[1763130627001,0.00013604,95698.0,95697.0,0.5803617]
[1763130627203,0.00213604,95698.0,95697.0,0.53694296]
[1763130627406,0.00213604,95698.0,95697.0,0.04595]
[1763130627590,0.00013604,95698.0,95697.0,0.6213617]
[1763130627941,0.00013604,95698.0,95697.0,0.7867057]
[1763130629224,0.0002,95730.0,95697.0,0.7867057]
[1763130629225,0.0002,95730.0,95729.0,0.25234184]
[1763130629400,0.0006533,95730.0,95729.0,0.25234184]
[1763130630230,0.0006533,95730.0,95718.0,0.20894618]
[1763130630231,0.0106533,95730.0,95721.0,0.323]
[1763130630422,0.0106533,95730.0,95723.0,0.2089362]
[1763130630590,0.0106533,95730.0,95728.0,0.20892359]
[1763130630788,0.0106533,95730.0,95729.0,0.2089231]
[1763130631273,0.0006533,95730.0,95729.0,0.2089231]
[1763130631419,0.0006533,95730.0,95729.0,0.25234184]
[1763130631822,0.0016533,95730.0,95729.0,0.57534184]
[1763130632512,0.01,95770.0,95769.0,0.20883584]
[1763130632712,0.00013601,95770.0,95769.0,0.20883584]
[1763130633136,0.00013601,95770.0,95764.0,0.04341874]
[1763130633342,0.00013601,95770.0,95763.0,0.74391012]
[1763130633343,0.00013601,95770.0,95768.0,0.2088371]
[1763130633956,0.00052,95769.0,95751.0,0.03136794]
[1763130634304,0.20883802,95768.0,95742.0,0.20889286]
[1763130634628,0.3725,95769.0,95731.0,0.09374]
[1763130634857,0.20886986,95754.0,95730.0,0.20891963]
[1763130635066,0.01044277,95760.0,95728.0,0.04911]
[1763130635067,0.01044386,95750.0,95728.0,0.04911]
[1763130635299,0.01,95730.0,95728.0,0.04911]
[1763130635945,0.01,95730.0,95721.0,0.09374]
[1763130635946,0.01044495,95740.0,95710.0,0.65017012]
[1763130636164,0.03592,95729.0,95690.0,0.66062053]
[1763130636414,0.01,95730.0,95719.0,0.65017012]
[1763130636663,0.01,95720.0,95717.0,0.20894902]
[1763130636860,0.00013591,95729.0,95728.0,0.57534402]
[1763130637506,0.00113591,95729.0,95728.0,0.57534402]
[1763130637964,0.00113591,95729.0,95728.0,0.92297402]
[1763130638194,0.00113591,95729.0,95728.0,0.68667602]
[1763130638430,0.00271853,95729.0,95728.0,0.68667602]
[1763130638658,0.00271853,95729.0,95728.0,0.60671756]
[1763130638890,0.00171853,95729.0,95728.0,0.57534402]
[1763130639115,0.04059,95779.0,95728.0,0.57534402]
[1763130639116,0.01,95770.0,95751.0,0.04341874]
[1763130639356,0.01013591,95770.0,95763.0,0.20884715]
[1763130639605,0.01013591,95770.0,95768.0,0.20883749]
[1763130639846,0.01013591,95770.0,95760.0,0.65017012]
[1763130639847,0.00013591,95770.0,95760.0,0.65017012]
[1763130640054,0.00013591,95770.0,95768.0,0.20883801]
[1763130640281,0.00013591,95770.0,95761.0,0.09374]
[1763130640526,0.00013591,95770.0,95748.0,0.09374]
[1763130640527,0.01113591,95770.0,95748.0,0.09374]
[1763130640731,0.01,95760.0,95750.0,0.65017012]
[1763130640961,0.01213591,95770.0,95747.0,0.20888335]
[1763130641189,0.01213591,95770.0,95741.0,0.09374]
[1763130641190,0.20886768,95755.0,95741.0,0.09374]
[1763130641413,0.01157759,95770.0,95740.0,0.57068945]
[1763130641692,0.20887867,95750.0,95740.0,0.57068945]
[1763130641919,0.20887856,95750.0,95719.0,0.09374]
[1763130642133,0.01,95740.0,95731.0,0.20891824]
[1763130642357,0.01,95740.0,95726.0,0.20892791]
[1763130642575,0.01,95740.0,95724.0,0.20893227]
[1763130642800,0.03601,95749.0,95720.0,0.58113658]
[1763130643047,0.03601,95749.0,95690.0,0.01045041]
[1763130643048,0.01,95720.0,95704.0,0.09374]
[1763130643275,0.01044713,95720.0,95707.0,0.0004533]
[1763130643511,0.20896894,95708.0,95707.0,0.0004533]
[1763130643737,0.53196894,95708.0,95707.0,0.0004533]
[1763130643962,0.64639759,95708.0,95707.0,0.0004533]
[1763130644212,0.55140777,95708.0,95707.0,0.0004533]
[1763130644622,0.55240777,95708.0,95707.0,0.0004533]
[1763130645041,0.20904445,95674.0,95662.0,0.04517]
[1763130645258,0.20908471,95656.0,95645.0,0.04911]
[1763130645487,0.04572,95663.0,95645.0,0.00013591]
[1763130645691,0.01,95650.0,95646.0,0.2091044]
[1763130645901,0.01,95650.0,95645.0,0.00013591]
[1763130646127,0.15444654,95662.0,95645.0,0.00013591]
[1763130646362,0.01,95680.0,95653.0,0.323]
[1763130646571,0.01,95680.0,95652.0,0.57068945]
[1763130646572,0.01942444,95679.0,95660.0,0.57068945]
[1763130646806,0.002,95663.0,95651.0,0.41674]
[1763130647015,0.002,95663.0,95650.0,0.58114423]
[1763130647016,0.01,95670.0,95652.0,0.20908993]
[1763130647225,0.01045259,95670.0,95638.0,0.30286158]
[1763130647427,0.01045259,95670.0,95630.0,0.57068945]
[1763130647428,0.01,95650.0,95630.0,0.77982877]
[1763130647637,0.20910003,95648.0,95623.0,0.09374]
[1763130647846,0.20910003,95648.0,95619.0,0.04911]
[1763130647847,0.2091044,95646.0,95619.0,0.04911]
[1763130648077,0.04965,95654.0,95637.0,0.01]
[1763130648287,0.04965,95654.0,95604.0,0.20919506]
[1763130648486,0.31390094,95646.0,95620.0,0.01045806]
[1763130648688,0.01,95630.0,95620.0,0.20916107]
[1763130649020,0.01,95630.0,95620.0,0.00013604]
[1763130649021,0.01900001,95630.0,95620.0,0.00013604]
[1763130649223,0.04952,95645.0,95620.0,0.00013604]
[1763130649502,0.01900001,95630.0,95620.0,0.20929726]
[1763130649703,0.20914857,95626.0,95620.0,0.00013604]
[1763130649907,0.20915789,95622.0,95620.0,0.00013604]
[1763130650120,0.10479654,95621.0,95620.0,0.00013604]
[1763130650328,0.002,95630.0,95621.0,0.04517]
[1763130650544,0.002,95630.0,95620.0,0.00013604]
[1763130650751,0.002,95630.0,95628.0,0.20914357]
[1763130651107,0.002,95630.0,95629.0,0.01369424]
[1763130651305,0.01100001,95630.0,95629.0,0.56495528]
[1763130651671,0.01100001,95630.0,95629.0,0.61727328]
[1763130651672,0.004,95630.0,95629.0,0.61727328]
[1763130651873,0.004,95630.0,95629.0,0.47121528]
[1763130652078,0.01100001,95630.0,95629.0,0.47121528]
[1763130652320,0.01100001,95630.0,95629.0,0.63214528]
[1763130652513,0.01100001,95630.0,95629.0,0.36641874]
[1763130652777,0.002,95630.0,95629.0,0.36641874]
[1763130652984,0.01045259,95670.0,95621.0,0.04517]
[1763130652985,0.0495,95648.0,95621.0,0.04517]
[1763130653223,0.01,95630.0,95620.0,0.57082549]
[1763130653391,0.01,95630.0,95629.0,0.20914157]
[1763130653574,0.01,95650.0,95649.0,0.20909784]
[1763130653775,0.00900001,95650.0,95649.0,0.20909784]
[1763130654093,0.0495,95669.0,95640.0,0.58114532]
[1763130654298,0.10479654,95674.0,95664.0,0.20906406]
[1763130654480,0.01,95660.0,95642.0,0.20911315]
[1763130654684,0.01,95660.0,95659.0,0.20907598]
[1763130655089,0.01,95660.0,95649.0,0.04911]
[1763130655299,0.20911086,95644.0,95606.0,0.09374]
[1763130655495,0.20911086,95644.0,95626.0,0.20914633]
[1763130655721,0.20911086,95644.0,95620.0,0.5718545]
[1763130655924,0.20909784,95650.0,95610.0,0.01045915]
[1763130655925,0.01045478,95650.0,95610.0,0.01045915]
[1763130656245,0.20918095,95611.0,95610.0,0.00045375]
[1763130656460,0.53218095,95611.0,95610.0,0.00045375]
[1763130657452,0.42879654,95611.0,95610.0,0.00045375]
[1763130657632,0.001,95611.0,95610.0,0.00045375]
[1763130657995,0.01900001,95620.0,95610.0,0.00045375]
[1763130658217,0.002,95611.0,95610.0,0.00045375]
[1763130658397,0.21118095,95611.0,95610.0,0.00045375]
[1763130658578,0.15340449,95611.0,95610.0,0.00045375]
[1763130658791,0.004,95611.0,95610.0,0.00045375]
[1763130658985,0.002,95611.0,95610.0,0.20963688]
[1763130659675,0.04362,95637.0,95610.0,0.20963688]
[1763130659676,0.04362,95637.0,95610.0,0.0109129]
[1763130659876,0.10479654,95632.0,95611.0,0.02091809]
[1763130660083,0.04362,95637.0,95610.0,0.03183121]
[1763130660315,0.01,95630.0,95629.0,0.20914157]
[1763130660508,0.01045259,95670.0,95652.0,0.20908962]
[1763130660509,0.08113,95658.0,95652.0,0.20908962]
[1763130660737,0.01045259,95670.0,95630.0,0.01045696]
[1763130660738,0.01,95660.0,95651.0,0.20909271]
[1763130660944,0.01,95650.0,95640.0,0.01045587]
[1763130661155,0.01,95650.0,95648.0,0.20909983]
[1763130661361,0.01,95650.0,95629.0,0.0466]
[1763130661362,0.2091121,95643.0,95616.0,0.0466]
[1763130661528,0.09013001,95650.0,95616.0,0.0466]
[1763130661529,0.001,95630.0,95616.0,0.0466]
[1763130661740,0.001,95630.0,95628.0,0.20914203]
[1763130661987,0.04572,95682.0,95673.0,0.20904332]
[1763130662166,0.20901507,95687.0,95668.0,0.0466]
[1763130662504,0.01,95680.0,95669.0,0.20905413]
[1763130662706,0.02045041,95690.0,95668.0,0.0466]
[1763130662838,0.20903912,95676.0,95657.0,0.0466]
[1763130663213,0.1200751,95690.0,95640.0,0.90291625]
[1763130663214,0.01,95660.0,95640.0,0.01045587]
[1763130663426,0.00900001,95650.0,95641.0,0.20911338]
[1763130663641,0.20911533,95641.0,95640.0,0.00013612]
[1763130663845,0.20911281,95643.0,95640.0,0.00013612]
[1763130664060,0.08549,95653.0,95640.0,0.00013612]
[1763130664280,0.20911518,95642.0,95640.0,0.00013612]
[1763130664560,0.20910678,95645.0,95640.0,0.00013612]
[1763130664780,0.001,95650.0,95640.0,0.00013612]
[1763130665019,0.001,95650.0,95649.0,0.57551658]
[1763130665020,0.00900002,95650.0,95649.0,0.57551658]
[1763130665232,0.01999998,95720.0,95646.0,0.20910401]
[1763130665233,0.04556,95708.0,95680.0,0.0104515]
[1763130665444,0.01,95710.0,95680.0,0.90196457]
[1763130665663,0.00900001,95690.0,95680.0,0.0104515]
[1763130665890,0.04932,95715.0,95680.0,0.0104515]
[1763130666103,0.01,95700.0,95680.0,0.0104515]
[1763130666313,0.01,95700.0,95673.0,0.04341874]
[1763130666314,0.01,95690.0,95673.0,0.20904469]
[1763130666536,0.00900001,95670.0,95661.0,0.04341874]
[1763130666728,0.01,95680.0,95661.0,0.04341874]
[1763130666955,0.01,95680.0,95674.0,0.2090418]
[1763130667202,0.01,95680.0,95655.0,0.04341874]
[1763130667203,0.01,95680.0,95660.0,0.01045369]
[1763130667418,0.01,95670.0,95669.0,0.20905413]
[1763130667627,0.01,95670.0,95663.0,0.20906532]
[1763130667851,0.01,95670.0,95655.0,0.2090835]
[1763130668071,0.01,95670.0,95630.0,0.66903176]
[1763130668072,0.01045369,95660.0,95630.0,0.01045696]
[1763130668323,0.20913717,95632.0,95630.0,0.00013612]
[1763130668549,0.04534,95631.0,95630.0,0.00013612]
[1763130669405,0.2544772,95631.0,95630.0,0.00013612]
[1763130669627,0.04534,95631.0,95630.0,0.00013612]
[1763130670055,0.082374,95631.0,95630.0,0.00013612]
[1763130670225,0.15013654,95631.0,95630.0,0.00013612]
[1763130670435,0.47513654,95631.0,95630.0,0.00013612]
[1763130670632,0.47513654,95631.0,95586.0,0.21358178]
[1763130670633,0.01,95600.0,95587.0,0.20923347]
[1763130670834,0.01,95590.0,95587.0,0.20968711]
[1763130671033,0.04683,95588.0,95587.0,0.00045375]
[1763130671277,0.01,95590.0,95589.0,0.20922909]